bitfinex-derivatives/quotes_ETHF0:USTF0_20240927
["timestamp","ask_amount","ask_price","bid_price","bid_amount"]
[1727456525268,0.36769,2719.0,2718.8,1.4028]
[1727456525675,0.36769,2719.0,2718.9,0.3677]
[1727456525870,3.57548,2719.1,2718.9,0.3677]
[1727456526274,3.2078,2719.1,2718.9,0.3677]
[1727456526474,0.3677,2718.9,2718.8,1.0351]
[1727456526871,0.36769,2719.0,2718.8,1.40281]
[1727456527193,0.3677,2718.9,2718.8,1.40281]
[1727456527374,0.3677,2719.0,2718.8,1.40281]
[1727456527574,0.3677,2718.9,2718.8,1.40281]
[1727456527781,4.2945,2719.1,2718.8,1.40281]
[1727456528077,3.2078,2718.9,2718.8,1.40281]
[1727456531367,1.083,2719.3,2719.2,0.36766]
[1727456531567,0.36762,2719.5,2719.4,0.36763]
[1727456531769,0.3676,2719.7,2719.2,0.91913]
[1727456531970,0.36762,2719.5,2719.4,0.36763]
[1727456532174,0.91898,2719.7,2719.5,0.36761]
[1727456532175,0.36761,2719.6,2719.5,0.36761]
[1727456532378,0.36761,2719.6,2719.4,0.36762]
[1727456532575,0.36761,2719.6,2719.3,3.9236]
[1727456532576,0.36761,2719.6,2719.5,0.36762]
[1727456532778,0.36762,2719.5,2719.4,0.36762]
[1727456533078,0.36762,2719.5,2719.2,1.0905]
[1727456533079,0.36764,2719.3,2719.2,0.36765]
[1727456533979,1.0536,2719.4,2719.1,1.0905]
[1727456534180,1.42124,2719.4,2719.2,0.36765]
[1727456534483,0.36769,2719.0,2718.8,0.3677]
[1727456534778,1.5115,2718.9,2718.7,1.47012]
[1727456535184,1.5115,2718.9,2718.8,0.36771]
[1727456535779,1.51151,2718.9,2718.7,1.47012]
[1727456535978,1.1438,2718.9,2718.7,1.1024]
[1727456536180,0.36771,2718.8,2718.6,0.36773]
[1727456536573,1.51591,2718.8,2718.6,0.36773]
[1727456536775,1.1482,2718.8,2718.7,0.36773]
[1727456537175,1.1482,2718.8,2718.7,3.23773]
[1727456537381,1.51591,2718.8,2718.7,2.87]
[1727456537982,1.1482,2718.8,2718.7,3.23773]
[1727456538177,1.51591,2718.8,2718.7,2.87]
[1727456538375,1.1482,2718.8,2718.7,3.23773]
[1727456539082,1.51591,2718.8,2718.7,2.87]
[1727456539384,1.51591,2718.8,2718.7,3.23773]
[1727456539581,1.51591,2718.8,2718.7,2.87]
[1727456539884,0.36773,2718.7,2718.5,1.47014]
[1727456540182,4.2612,2718.7,2718.6,0.36774]
[1727456540579,4.62893,2718.7,2718.6,0.36774]
[1727456540772,0.36774,2718.6,2718.4,0.36776]
[1727456540973,0.36774,2718.6,2718.4,0.36777]
[1727456542884,1.1438,2718.9,2718.8,0.36771]
[1727456543091,1.0379,2719.3,2719.1,0.36766]
[1727456543384,1.0379,2719.3,2718.8,3.78929]
[1727456543385,1.0379,2719.3,2719.2,0.36766]
[1727456543576,1.0379,2719.3,2719.2,3.23766]
[1727456543982,1.0379,2719.3,2719.2,4.31906]
[1727456544179,1.40554,2719.3,2719.2,3.9514]
[1727456544374,1.40554,2719.3,2719.2,1.0814]
[1727456544579,0.36767,2719.2,2719.0,3.23768]
[1727456544978,0.36769,2719.0,2718.9,2.1683]
[1727456545179,4.2955,2719.1,2718.6,3.81607278]
[1727456545379,1.95903,2719.0,2718.6,1.0814]
[1727456545582,3.57552,2718.8,2718.6,1.44913]
[1727456545888,0.36773,2718.7,2718.6,1.0814]
[1727456546790,3.57552,2718.8,2718.6,1.44914]
[1727456546981,0.36773,2718.7,2718.6,1.44914]
[1727456547182,3.2078,2718.8,2718.7,0.36773]
[1727456548281,2.50049,2719.0,2718.7,0.36773]
[1727456548678,0.3677,2718.9,2718.7,0.36772]
[1727456549093,3.2078,2718.8,2718.5,0.36775]
[1727456549389,0.36774,2718.6,2718.5,0.36775]
[1727456549588,0.36773,2718.7,2718.5,0.36775]
[1727456549787,0.36773,2718.7,2718.4,3.9251]
[1727456550184,0.36774,2718.6,2718.5,0.36775]
[1727456550386,3.2078,2718.8,2718.5,0.36775]
[1727456550387,0.36773,2718.7,2718.5,0.36775]
[1727456551391,3.2078,2718.8,2718.6,0.36774]
[1727456551585,3.2078,2718.8,2718.7,0.36773]
[1727456551979,3.2078,2718.8,2718.7,3.23773]
[1727456552385,1.46069,2719.0,2718.7,2.87]
[1727456552589,1.46069,2719.0,2718.9,0.3677]
[1727456552785,1.093,2719.0,2718.9,0.3677]
[1727456554690,0.36766,2719.2,2719.1,0.36767]
[1727456554894,0.36768,2719.1,2719.0,0.36768]
[1727456556202,0.36768,2719.1,2718.9,1.0591]
[1727456556203,0.36769,2719.0,2718.9,1.42679]
[1727456556501,1.97784,2719.3,2719.1,0.36767]
[1727456556502,0.36766,2719.2,2719.1,0.36767]
[1727456557001,1.0587,2719.3,2718.9,1.0591]
[1727456557403,1.42635,2719.3,2719.2,0.36766]
[1727456557711,3.2078,2719.4,2719.2,0.36766]
[1727456557913,3.57543,2719.4,2719.3,1.0499]
[1727456558411,0.36763,2719.5,2719.4,0.36763]
[1727456558712,1.0658,2719.6,2719.5,0.36762]
[1727456559411,0.36762,2719.5,2719.4,1.43152]
[1727456559609,0.36762,2719.5,2719.3,1.0499]
[1727456559610,0.36763,2719.4,2719.3,1.0499]
[1727456559811,0.36766,2719.3,2719.2,0.36765]
[1727456560019,1.112,2719.4,2719.0,1.0098]
[1727456560216,0.36769,2719.0,2718.9,0.36769]
[1727456560900,1.38388,2719.1,2719.0,0.36769]
[1727456563110,1.0162,2719.1,2719.0,0.36769]
[1727456563310,1.38387,2719.1,2719.0,0.36769]
[1727456563707,1.0162,2719.1,2719.0,0.36769]
[1727456564434,4.3198,2719.4,2719.3,0.36764]
[1727456564435,4.68743,2719.4,2719.3,0.36764]
[1727456564616,5.73753,2719.4,2719.3,0.36764]
[1727456564916,0.36765,2719.3,2719.2,0.36765]
[1727456565508,0.36766,2719.2,2719.1,0.36766]
[1727456565713,5.3699,2719.4,2719.0,0.94607278]
[1727456565921,5.73754,2719.4,2719.3,0.36764]
[1727456566221,0.36765,2719.3,2719.2,0.36765]
[1727456566619,5.73754,2719.4,2719.3,0.36764]
[1727456567124,5.3699,2719.4,2719.3,0.36764]
[1727456567316,1.0501,2719.4,2719.3,0.36764]
[1727456567709,0.36764,2719.3,2719.2,1.40625]
[1727456567924,4.62554,2719.4,2719.3,0.36764]
[1727456569720,3.2078,2719.4,2719.3,0.36764]
[1727456570024,3.2078,2719.4,2719.3,1.41474]
[1727456570233,3.57543,2719.4,2719.3,1.41474]
[1727456572423,0.36763,2719.4,2719.3,1.41474]
[1727456573825,0.36763,2719.5,2719.4,0.36762]
[1727456575025,4.12683,2719.6,2719.3,1.41474]
[1727456575026,0.36763,2719.4,2719.3,1.41474]
[1727456575628,3.2078,2719.6,2719.5,0.36762]
[1727456575833,3.57537,2719.9,2719.4,2.87]
[1727456576032,3.57537,2719.9,2719.8,0.36758]
[1727456576833,3.2078,2719.9,2719.8,0.36758]
[1727456577031,1.0152,2720.1,2720.0,0.36755]
[1727456577231,1.0152,2720.1,2719.9,2.205]
[1727456577232,1.28643,2720.0,2719.9,2.205]
[1727456577432,1.28643,2720.0,2719.8,0.36757]
[1727456577433,0.36756,2719.9,2719.8,0.36757]
[1727456577634,3.57536,2719.9,2719.8,0.36757]
[1727456578330,3.2078,2719.9,2719.8,4.04437]
[1727456578535,3.2078,2719.9,2719.8,6.91437]
[1727456578733,3.2078,2719.9,2719.8,3.23757]
[1727456579038,3.57536,2719.9,2719.8,3.23757]
[1727456579227,3.2078,2719.9,2719.8,3.23757]
[1727456579428,3.2078,2719.9,2719.8,6.91437]
[1727456579640,3.2078,2719.9,2719.8,3.23757]
[1727456579831,3.2078,2719.9,2719.8,6.91437]
[1727456580634,1.0998,2720.4,2719.8,7.46573]
[1727456580635,3.2078,2720.2,2719.8,7.46573]
[1727456580833,3.2078,2720.2,2720.1,0.36754]
[1727456581640,1.0641,2720.5,2720.4,0.3675]
[1727456582333,1.43158,2720.5,2720.4,0.3675]
[1727456582528,1.43158,2720.5,2720.3,3.2375]
[1727456582529,0.3675,2720.4,2720.3,3.2375]
[1727456583137,1.43159,2720.5,2720.3,3.2375]
[1727456583338,1.0641,2720.5,2720.3,3.2375]
[1727456583531,0.3675,2720.4,2720.3,3.2375]
[1727456583735,1.0641,2720.5,2720.4,0.3675]
[1727456584241,1.43158,2720.5,2720.4,0.3675]
[1727456584736,1.43158,2720.5,2720.3,3.2375]
[1727456585037,0.3675,2720.4,2720.3,3.2375]
[1727456585236,0.3675,2720.4,2720.3,2.87]
[1727456585448,0.3675,2720.4,2720.3,3.23751]
[1727456585631,0.3675,2720.4,2720.3,2.87]
[1727456585834,0.36751,2720.3,2720.2,2.0531]
[1727456586138,0.36751,2720.3,2719.7,2.90544278]
[1727456586139,0.36755,2720.0,2719.9,0.36756]
[1727456586334,3.57535,2720.1,2719.9,0.36756]
[1727456586540,3.2078,2720.1,2719.9,3.23756]
[1727456586733,0.36755,2720.0,2719.9,3.23756]
[1727456587041,0.36756,2719.9,2719.8,2.52697]
[1727456587431,0.36755,2720.0,2719.9,0.36756]
[1727456588738,4.2662,2720.1,2719.8,1.49017]
[1727456588739,0.36756,2719.9,2719.8,1.49017]
[1727456589430,0.91891,2720.0,2719.6,1.4827]
[1727456589634,0.36759,2719.7,2719.5,0.36761]
[1727456589939,1.3809,2719.6,2719.4,1.45842]
[1727456590134,0.36762,2719.5,2719.4,1.45842]
[1727456590335,3.57542,2719.5,2719.3,1.44394]
[1727456590843,4.58802,2719.5,2719.3,1.44394]
[1727456591336,4.58802,2719.5,2719.4,0.36763]
[1727456591530,4.2204,2719.5,2719.4,0.36763]
[1727456593143,3.2078,2719.5,2719.4,3.23763]
[1727456593437,0.91883,2720.2,2719.5,0.91905]
[1727456593438,0.36754,2720.1,2719.5,0.91905]
[1727456593642,0.36754,2720.1,2720.0,3.23755]
[1727456594533,3.2078,2720.5,2720.0,3.78887]
[1727456594735,0.36748,2720.6,2720.4,3.2375]
[1727456594937,0.36748,2720.6,2720.5,0.36748]
[1727456595544,0.36748,2720.5,2720.4,3.23749]
[1727456595742,3.57528,2720.5,2720.4,3.23749]
[1727456595940,3.57528,2720.5,2720.4,0.36749]
[1727456598645,3.57529,2720.5,2720.4,0.3675]
[1727456598941,3.2078,2720.5,2720.4,0.3675]
[1727456599135,3.2078,2720.5,2720.4,6.9135]
[1727456599333,3.2078,2720.5,2720.4,7.9619]
[1727456599742,3.2078,2720.5,2720.4,8.88065]
[1727456601149,3.2078,2720.5,2720.4,7.9619]
[1727456601647,3.2078,2720.5,2720.4,8.88065]
[1727456602049,3.2078,2720.5,2720.4,5.20465]
[1727456603339,3.2078,2720.5,2720.4,4.2859]
[1727456603539,0.36746,2720.7,2720.6,0.36747]
[1727456604045,4.2693,2720.8,2720.4,2.87]
[1727456604244,3.2078,2720.5,2720.4,3.23748]
[1727456604639,3.2078,2720.5,2720.3,1.0461]
[1727456604845,0.36751,2720.3,2720.2,4.33052]
[1727456606545,0.36751,2720.3,2720.2,3.963]
[1727456606848,4.12652,2720.5,2720.2,3.963]
[1727456607041,0.3675,2720.4,2720.2,3.963]
[1727456607351,0.3675,2720.4,2720.2,4.33051]
[1727456609248,3.57529,2720.5,2720.3,0.36751]
[1727456609448,3.2078,2720.5,2720.4,0.3675]
[1727456609756,3.2078,2720.5,2720.3,0.3675]
[1727456609757,3.57529,2720.5,2720.3,0.3675]
[1727456610155,3.57529,2720.5,2720.4,2.87]
[1727456610539,3.2078,2720.5,2720.4,3.2375]
[1727456610850,3.57528,2720.5,2720.4,2.87]
[1727456611855,0.36751,2720.3,2720.2,4.33051]
[1727456612247,0.36751,2720.3,2720.2,3.963]
[1727456612746,0.3675,2720.4,2720.2,4.33051]
[1727456613143,1.0091,2720.3,2720.2,4.33051]
[1727456614453,1.37661,2720.3,2720.2,4.33051]
[1727456614954,0.36754,2720.1,2720.0,2.87]
[1727456615156,4.227,2720.2,2720.1,0.36754]
[1727456615357,4.59452,2720.2,2720.1,0.36754]
[1727456615757,0.36754,2720.1,2720.0,2.87]
[1727456616250,4.59453,2720.2,2720.0,3.23754]
[1727456617147,4.59453,2720.2,2720.1,0.36754]
[1727456618949,4.59452,2720.2,2720.1,0.36754]
[1727456619452,0.36754,2720.1,2720.0,2.87]
[1727456619652,0.36754,2720.1,2720.0,3.23754]
[1727456620250,0.36755,2720.0,2719.9,0.36756]
[1727456620453,1.39605,2720.0,2719.9,0.36756]
[1727456620963,1.0285,2720.0,2719.9,0.36756]
[1727456621151,3.2078,2720.2,2720.1,0.36754]
[1727456621348,3.2078,2720.2,2720.1,3.23754]
[1727456621756,3.57532,2720.2,2720.1,3.23754]
[1727456621959,3.57532,2720.2,2719.8,0.36756]
[1727456621960,0.91885,2720.1,2719.8,0.36756]
[1727456622149,3.57537,2719.9,2719.7,3.9099]
[1727456622349,3.57537,2719.9,2719.8,0.36758]
[1727456622754,0.36758,2719.8,2719.7,4.27748]
[1727456622955,0.36758,2719.8,2719.7,3.9099]
[1727456623254,0.36759,2719.7,2719.6,0.3676]
[1727456625157,4.12673,2719.9,2719.5,3.23761]
[1727456625158,0.3676,2719.6,2719.5,3.23761]
[1727456625454,0.3676,2719.7,2719.6,0.3676]
[1727456627662,0.3676,2719.6,2719.5,3.23761]
[1727456628864,0.3676,2719.6,2719.5,2.87]
[1727456629755,0.3676,2719.6,2719.5,3.23762]
[1727456632064,0.3676,2719.7,2719.6,0.36759]
[1727456633260,0.3676,2719.6,2719.5,3.23761]
[1727456634162,0.3676,2719.6,2719.5,3.23031]
[1727456634564,0.3676,2719.7,2719.6,0.36759]
[1727456634766,1.28658,2719.7,2719.6,0.36759]
[1727456634959,0.3676,2719.6,2719.5,3.23031]
[1727456636365,1.4225,2719.7,2719.6,0.3676]
[1727456639865,4.6303,2719.7,2719.6,0.3676]
[1727456642467,0.36759,2719.7,2719.6,0.3676]
[1727456642668,0.36759,2719.8,2719.7,0.36758]
[1727456642873,3.57539,2719.8,2719.7,0.36758]
[1727456643371,3.2078,2719.8,2719.7,0.36758]
[1727456643574,3.57538,2719.8,2719.7,0.36758]
[1727456644174,3.57535,2720.1,2720.0,0.36755]
[1727456644871,4.52105,2720.1,2720.0,0.36755]
[1727456645371,4.52105,2720.1,2720.0,6.91435]
[1727456645372,3.2078,2720.1,2720.0,6.91435]
[1727456646162,2.8449,2720.8,2720.4,0.3675]
[1727456646163,3.2078,2720.5,2720.4,0.3675]
[1727456646875,3.2078,2720.5,2720.4,1.377]
[1727456650876,3.2078,2720.5,2720.4,5.053]
[1727456654871,3.2078,2720.5,2720.4,1.377]
[1727456655474,3.2078,2720.5,2720.4,5.053]
[1727456655778,3.2078,2720.5,2720.4,1.377]
[1727456656277,3.2078,2720.5,2720.4,5.053]
[1727456656684,3.2078,2720.5,2720.4,1.377]
[1727456657477,3.2078,2720.5,2720.4,5.053]
[1727456659076,3.2078,2720.5,2720.4,1.377]
[1727456662277,3.2078,2720.5,2720.4,2.697]
[1727456666678,3.2078,2720.5,2720.4,3.61575]
[1727456666887,3.2078,2720.5,2720.4,2.697]
[1727456667985,3.2078,2720.5,2720.4,1.6875]
[1727456669085,3.2078,2720.5,2720.3,0.91878]
[1727456669086,6.8838,2720.5,2720.3,0.3675]
[1727456669293,0.9459,2720.4,2720.3,0.36751]
[1727456669484,1.3134,2720.4,2720.3,0.36751]
[1727456670685,0.9459,2720.4,2720.3,0.36751]
[1727456670994,1.3134,2720.4,2720.3,0.36751]
[1727456671192,0.9459,2720.4,2720.3,0.36751]
[1727456672293,1.3134,2720.4,2720.3,0.36751]
[1727456672498,0.9459,2720.4,2720.3,0.36751]
[1727456673193,1.3134,2720.4,2720.3,0.36751]
[1727456673892,1.3134,2720.4,2720.0,0.36754]
[1727456673893,0.36754,2720.1,2720.0,0.36754]
[1727456674095,3.2078,2720.1,2720.0,0.36754]
[1727456674403,0.36755,2720.0,2719.9,1.68756]
[1727456674609,1.9303,2720.0,2719.9,1.68756]
[1727456678998,3.2078,2720.1,2720.0,0.36755]
[1727456679395,0.953,2720.2,2720.1,0.36754]
[1727456679592,0.953,2720.2,2720.1,2.60639]
[1727456679794,3.2078,2720.5,2720.4,0.3675]
[1727456680095,3.2078,2720.5,2720.4,1.6875]
[1727456680398,3.57528,2720.5,2720.4,1.6875]
[1727456680784,3.2078,2720.5,2720.4,1.6875]
[1727456681000,3.57528,2720.5,2720.4,1.6875]
[1727456683695,3.57528,2720.5,2720.4,0.3675]
[1727456684895,3.2078,2720.5,2720.4,0.3675]
[1727456685296,3.57528,2720.5,2720.4,0.3675]
[1727456686698,3.2078,2720.8,2720.7,1.28611]
[1727456687296,3.2078,2720.8,2720.7,3.24411]
[1727456687698,3.2078,2720.8,2720.7,2.32546]
[1727456688602,3.2078,2720.8,2720.7,3.24411]
[1727456689199,3.2078,2721.2,2721.1,0.36739]
[1727456689410,3.2078,2721.2,2721.1,1.68739]
[1727456690206,3.57519,2721.2,2721.1,1.68739]
[1727456690400,3.57519,2721.2,2721.1,0.36739]
[1727456691417,3.2078,2721.2,2721.1,0.36739]
[1727456691706,3.57519,2721.2,2721.1,0.36739]
[1727456692905,3.2078,2721.2,2721.1,0.36739]
[1727456693105,3.2078,2721.2,2721.1,3.23739]
[1727456695110,3.2078,2721.2,2721.1,4.1559]
[1727456695711,3.2078,2721.2,2721.1,6.91259]
[1727456696114,3.2078,2721.2,2721.1,7.8311]
[1727456696522,3.2078,2721.2,2721.1,6.91259]
[1727456697814,3.2078,2721.2,2721.1,7.8311]
[1727456699614,3.2078,2721.2,2721.1,6.91259]
[1727456700014,3.2078,2721.2,2721.1,3.23739]
[1727456700420,3.57519,2721.2,2721.1,3.23739]
[1727456700724,3.57519,2721.2,2720.7,4.828]
[1727456700725,5.13389,2721.2,2720.7,4.828]
[1727456700917,2.3639,2721.1,2721.0,0.36741]
[1727456701117,1.3951,2721.1,2721.0,0.36741]
[1727456701516,4.5828,2721.2,2721.1,0.3674]
[1727456702828,3.2078,2721.2,2721.1,3.2374]
[1727456703220,3.2078,2721.5,2721.4,0.36736]
[1727456704325,1.0222,2721.7,2721.6,0.36733]
[1727456704627,1.0222,2721.7,2721.6,3.23733]
[1727456705334,1.38952,2721.7,2721.6,3.23733]
[1727456705529,1.38952,2721.7,2721.6,0.36733]
[1727456706331,1.0222,2721.7,2721.6,0.36733]
[1727456706530,4.2275,2721.9,2721.8,0.36731]
[1727456706735,3.2078,2721.9,2721.8,3.23731]
[1727456707126,3.2078,2721.9,2721.8,4.16541]
[1727456708534,0.9748,2722.1,2722.0,0.36728]
[1727456708729,0.9748,2722.1,2722.0,3.23728]
[1727456708939,3.2078,2722.2,2722.1,0.36727]
[1727456709536,3.57505,2722.2,2722.1,0.36727]
[1727456709839,0.91817,2722.1,2721.7,0.9734]
[1727456710038,0.36735,2721.5,2721.4,0.9447]
[1727456710249,3.2078,2721.6,2721.0,5.7793]
[1727456710442,1.0245,2721.4,2721.3,0.36737]
[1727456710635,1.38435,2721.5,2721.2,2.87]
[1727456710837,1.38435,2721.5,2721.3,0.36736]
[1727456711038,1.017,2721.5,2721.2,3.23738]
[1727456711237,0.36737,2721.3,2721.2,2.87]
[1727456711434,0.36737,2721.3,2721.2,0.36739]
[1727456712043,1.93539,2721.5,2721.2,0.36739]
[1727456712044,1.38435,2721.5,2721.2,2.87]
[1727456712348,1.017,2721.5,2721.2,3.23738]
[1727456712536,3.57517,2721.4,2721.2,2.87]
[1727456712738,3.2078,2721.4,2721.3,0.36737]
[1727456713240,0.36736,2721.4,2721.3,0.36737]
[1727456713635,1.0204,2721.6,2721.2,2.87]
[1727456713841,1.38774,2721.6,2721.5,0.36735]
[1727456714443,1.0204,2721.6,2721.5,0.36735]
[1727456714647,3.2078,2721.7,2721.6,0.36733]
[1727456714848,2.36341,2721.8,2721.7,0.36732]
[1727456715049,0.9716,2721.8,2721.7,0.36732]
[1727456715350,0.3673,2721.9,2721.6,2.87]
[1727456715547,4.1794,2722.0,2721.9,0.36729]
[1727456715744,0.36729,2721.9,2721.8,3.2373]
[1727456716046,4.54669,2722.0,2721.9,0.36729]
[1727456716243,0.36729,2721.9,2721.8,3.2373]
[1727456716744,4.1794,2722.0,2721.9,0.36729]
[1727456716942,3.2078,2722.3,2721.9,3.6736]
[1727456717146,3.2078,2722.3,2722.2,0.36725]
[1727456718040,3.57504,2722.3,2722.2,0.36725]
[1727456718442,3.2078,2722.3,2722.2,0.36725]
[1727456719651,3.57504,2722.3,2722.2,0.36725]
[1727456721141,3.2078,2722.3,2722.2,0.36725]
[1727456721347,3.2078,2722.3,2722.2,1.28539]
[1727456721545,0.9695,2722.6,2722.2,1.28539]
[1727456721741,4.1773,2722.6,2722.5,3.23721]
[1727456722142,4.5445,2722.6,2722.5,3.23721]
[1727456722748,0.36721,2722.5,2722.4,2.87]
[1727456722953,0.36724,2722.4,2722.3,0.36723]
[1727456726249,0.36727,2722.2,2722.0,0.9394]
[1727456726458,5.58809,2722.1,2721.6,0.5072]
[1727456726648,3.57509,2722.0,2721.9,0.36729]
[1727456729349,3.2078,2722.0,2721.9,0.36729]
[1727456729548,3.2078,2722.0,2721.9,0.87899]
[1727456731250,2.31517,2722.1,2722.0,0.36728]
[1727456731450,1.9479,2722.1,2721.8,2.87]
[1727456731655,0.36729,2721.9,2721.8,2.87]
[1727456731862,3.2078,2722.0,2721.6,3.3772]
[1727456732049,0.36732,2721.7,2721.6,3.74452]
[1727456733549,0.36732,2721.7,2721.6,3.3772]
[1727456734157,0.36731,2721.8,2721.7,0.36732]
[1727456734460,0.36732,2721.8,2721.6,3.74453]
[1727456734650,0.36732,2721.8,2721.7,0.36732]
[1727456735051,0.36732,2721.8,2721.6,3.74452]
[1727456735253,0.36732,2721.8,2721.7,0.36732]
[1727456735861,0.36732,2721.7,2721.6,3.74452]
[1727456737654,0.36732,2721.8,2721.7,0.36732]
[1727456738962,0.36732,2721.8,2721.6,3.3772]
[1727456738963,0.36732,2721.7,2721.6,3.74453]
[1727456739165,0.90042,2721.7,2721.6,3.74453]
[1727456739361,0.5331,2721.7,2721.6,3.74453]
[1727456739561,0.90042,2721.7,2721.6,3.74453]
[1727456739763,0.5331,2721.7,2721.6,3.74453]
[1727456740357,0.90042,2721.7,2721.6,3.74453]
[1727456740769,0.3673,2721.9,2721.8,0.36729]
[1727456741066,3.7409,2722.0,2721.9,0.36729]
[1727456741364,0.5331,2722.0,2721.9,0.36729]
[1727456741958,0.36725,2722.2,2722.1,0.36725]
[1727456742268,0.36725,2722.2,2722.1,3.23725]
[1727456742762,4.13095,2722.3,2722.2,0.36725]
[1727456743164,4.13095,2722.3,2722.1,3.4171]
[1727456743165,0.36725,2722.2,2722.1,3.78436]
[1727456743465,4.13095,2722.3,2722.1,3.78436]
[1727456743466,3.7637,2722.3,2722.2,0.36725]
[1727456743759,0.5559,2722.3,2722.2,0.36725]
[1727456744352,0.92314,2722.3,2722.2,0.36725]
[1727456748369,0.00477277,2722.3,2722.2,0.36725]
[1727456749056,0.37201277,2722.3,2722.2,0.36725]
[1727456749258,0.00477277,2722.3,2722.2,0.36725]
[1727456749457,4.08024,2722.4,2722.3,0.36724]
[1727456749855,3.57504,2722.4,2722.3,0.36724]
[1727456750760,0.36725,2722.3,2722.2,0.36724]
[1727456750964,0.36725,2722.3,2722.1,3.4171]
[1727456750965,0.36725,2722.2,2722.1,0.91436]
[1727456751160,0.36725,2722.2,2722.1,0.36726]
[1727456751360,4.04085,2722.2,2722.1,0.36726]
[1727456751554,4.57155,2722.2,2722.1,0.36726]
[1727456751768,0.36728,2722.1,2722.0,0.36727]
[1727456751961,4.10028,2722.1,2722.0,0.36727]
[1727456752362,4.10028,2722.1,2721.8,1.0633]
[1727456752363,0.36729,2722.0,2721.8,1.0633]
[1727456752566,0.36729,2721.9,2721.8,1.43059]
[1727456752762,0.36729,2721.9,2721.8,0.5461]
[1727456752763,1.28553,2721.9,2721.8,0.5461]
[1727456752957,0.36734,2721.6,2721.4,0.5172]
[1727456753161,0.36734,2721.6,2721.4,0.88455]
[1727456753466,0.36732,2721.7,2721.6,0.36733]
[1727456756073,0.36732,2721.7,2721.5,3.23734]
[1727456756266,0.36732,2721.7,2721.6,0.36733]
[1727456758074,3.7385,2721.8,2721.6,0.36733]
[1727456758273,0.36732,2721.7,2721.6,0.36733]
[1727456759268,4.10581,2721.8,2721.7,0.36732]
[1727456759471,0.36732,2721.7,2721.6,0.36732]
[1727456760275,3.7385,2721.8,2721.4,0.5172]
[1727456760471,3.7385,2721.8,2721.3,4.36217278]
[1727456760472,0.36736,2721.4,2721.3,0.91347]
[1727456760674,3.2078,2721.5,2721.1,0.5072]
[1727456760675,4.12619,2721.5,2721.1,0.5072]
[1727456760872,0.36742,2721.0,2720.9,0.94607278]
[1727456761179,0.91851,2721.1,2720.4,0.94607278]
[1727456761389,0.5044,2721.3,2720.4,0.5216]
[1727456761390,3.2078,2720.7,2720.4,0.5216]
[1727456761678,0.5044,2720.6,2720.4,0.5216]
[1727456761881,0.36753,2720.2,2720.0,0.94607278]
[1727456762181,0.36753,2720.2,2719.3,7.02387278]
[1727456762182,2.87,2720.1,2719.3,7.02387278]
[1727456762370,3.2078,2719.8,2719.4,0.5216]
[1727456762567,3.57542,2719.6,2719.4,0.5216]
[1727456762771,3.2078,2719.6,2719.2,0.5072]
[1727456762986,0.36763,2719.5,2719.1,2.87]
[1727456763179,0.36763,2719.5,2719.0,0.88928]
[1727456763492,3.2078,2719.3,2718.9,2.87]
[1727456763774,3.57545,2719.3,2718.8,0.36771]
[1727456763983,0.36766,2719.2,2718.7,3.57552]
[1727456764167,3.2078,2719.3,2718.7,0.36772]
[1727456764373,3.2078,2719.0,2718.6,0.85233]
[1727456764579,3.2078,2719.0,2718.7,0.36772]
[1727456765074,3.57549,2719.0,2718.6,0.85233]
[1727456765280,3.2078,2719.0,2718.6,0.85233]
[1727456765471,3.2078,2719.0,2718.7,0.36773]
[1727456766186,0.3677,2718.9,2718.6,0.4846]
[1727456766381,3.2078,2718.7,2718.4,0.36776]
[1727456766785,3.57553,2718.7,2718.3,0.36777]
[1727456766984,3.2078,2718.4,2718.3,0.36777]
[1727456768180,0.36773,2718.7,2718.3,0.36777]
[1727456768181,3.2078,2718.7,2718.6,0.36774]
[1727456768386,3.2078,2718.7,2718.6,3.23774]
[1727456769072,3.2078,2718.7,2718.5,0.36775]
[1727456769385,3.2078,2718.7,2718.4,0.36776]
[1727456769386,3.57553,2718.7,2718.4,0.36776]
[1727456769681,3.2078,2718.7,2718.5,0.36775]
[1727456770273,3.2078,2718.7,2718.6,0.36774]
[1727456770477,6.8862,2718.7,2718.2,2.87]
[1727456770784,3.2078,2718.4,2718.2,3.23779]
[1727456771078,3.2078,2718.4,2718.3,0.36778]
[1727456772281,3.57557,2718.4,2718.2,3.23779]
[1727456772579,3.2078,2718.4,2718.3,0.36778]
[1727456772984,3.2078,2718.4,2718.2,2.87]
[1727456772985,3.57557,2718.4,2718.2,3.23779]
[1727456773274,3.57557,2718.4,2718.2,0.36779]
[1727456773682,3.2078,2718.4,2718.3,0.36778]
[1727456776082,3.2078,2718.4,2718.2,0.36779]
[1727456776083,0.36778,2718.3,2718.2,0.36779]
[1727456776282,3.57557,2718.4,2718.2,0.36779]
[1727456776481,3.57557,2718.4,2718.3,0.36778]
[1727456776687,3.2078,2718.4,2718.3,0.36778]
[1727456779289,3.57557,2718.4,2718.3,0.36778]
[1727456779488,0.36779,2718.3,2718.0,3.3996]
[1727456779690,3.57557,2718.4,2718.0,3.3996]
[1727456780085,0.36778,2718.3,2718.2,0.36779]
[1727456780582,3.57557,2718.4,2718.3,0.36778]
[1727456780983,0.36778,2718.3,2718.2,0.36778]